Cogmind - Beta 16 @@@ ROGUE MODE // 2025.11.17 @ 18:52:34 Player: delto Result: Destroyed by G-47 Trooper with Particle Gun Performance ------------- Evolutions (2) 1000 Regions Visited (5) 1000 Robots Destroyed (31) 155 Value Destroyed (766) 766 Prototype IDs (1) 20 Alien Tech Used (0) 0 Bonus (0) 0 TOTAL SCORE: 2941 Bonus ------- None Cogmind --------- Core Integrity 0/550 Matter 239/300 Energy 47/160 System Corruption 0% Temperature Cool (9) Movement Walking (105) Location -8/Materials Parts ------- > --- POWER (1) -------- Light Nuclear Core > --- PROPULSION (3) --- Aluminum Leg > --- UTILITY (4) ------ Advanced Weight Redist. System Improved Signal Interpreter Transmission Jammer > --- WEAPON (3) ------- (None) > --- INVENTORY (5) ---- Light Ion Engine Light Ion Engine Improved Ion Engine Peak State ------------ > --- POWER ------------ Light Nuclear Core > --- PROPULSION ------- Airjet Airjet > --- UTILITY ---------- Heat Sink Improved Terrain Scanner Decoy Drone Bay > --- WEAPON ----------- Particle Gun Particle Gun > --- INVENTORY -------- Improved Ion Engine Airjet Particle Gun [Rating: 31] Favorites ----------- Power Light Nuclear Core Engine Light Ion Engine Power Core Light Nuclear Core Propulsion Aluminum Leg Leg Aluminum Leg Hover Unit Airjet Flight Unit Xenon Bombardment Thruster Utility Improved Terrain Scanner Device Improved Terrain Scanner Storage Small Storage Unit Processor Targeting Computer Weapon Particle Gun Energy Gun Particle Gun Ballistic Gun Assault Rifle Launcher Grenade Launcher Special Weapon Mining Laser Impact Weapon Hammer Build | -11 -10 -10 -9 -9 -8 ------- Run | Yrd Mat Min Mat Min Mat Slots Evolved 4 | . . . 2 . 2 Power . | . . . . . . Propulsion 1 | . . . . . 1 Utility 2 | . . . 2 . . Weapon 1 | . . . . . 1 Parts Attached 47 | 7 2 1 11 1 25 Power 6 | 1 . . 1 . 4 Engine 3 | 1 . . . . 2 Core 3 | . . . 1 . 2 Reactor . | . . . . . . Propulsion 14 | 2 . . 3 . 9 Treads . | . . . . . . Leg 4 | 2 . . . . 2 Wheel . | . . . . . . Hover 4 | . . . 3 . 1 Flight 6 | . . . . . 6 Utility 13 | 3 . . 4 1 5 Device 9 | 2 . . 2 1 4 Storage 1 | 1 . . . . . Processor 3 | . . . 2 . 1 Hackware . | . . . . . . Protection . | . . . . . . Artifact . | . . . . . . Weapon 14 | 1 2 1 3 . 7 Energy Gun 8 | . 2 . 3 . 3 Energy Cannon . | . . . . . . Ballistic Gun 3 | 1 . . . . 2 Ballistic Cannon . | . . . . . . Launcher 1 | . . 1 . . . Special Weapon 1 | . . . . . 1 Impact Weapon 1 | . . . . . 1 Slashing Weapon . | . . . . . . Piercing Weapon . | . . . . . . Special Melee Weapon . | . . . . . . Unidentified Prototypes 1 | . . . . 1 . Parts Lost 26 | . . . 5 . 21 Power 4 | . . . 1 . 3 Propulsion 8 | . . . 1 . 7 Utility 6 | . . . 2 . 4 Weapon 8 | . . . 1 . 7 Highest Loss Streak 19 | . . . 3 . 19 To Critical Strikes . | . . . . . . Average Backups 4 | 2 4 5 5 3 4 Power 1 | . 1 1 1 1 1 Propulsion . | . . . 1 1 . Utility . | . 1 2 . . 1 Weapon 1 | 1 2 2 2 1 . Tool/Special . | . . . . . . Unused Backups 17 | . 1 . 11 . 5 Power 4 | . . . 3 . 1 Propulsion 5 | . . . 5 . . Utility 1 | . . . . . 1 Weapon 7 | . 1 . 3 . 3 Tool/Special . | . . . . . . Average Slot Usage (%) 92 | . 98 100 98 83 85 Engine 4 | . 14 14 3 . 2 Core 5 | . . . 7 11 5 Leg 9 | . 28 28 11 . 1 Hover 8 | . . . 11 22 4 Flight 5 | . . . . . 16 Device 25 | . 28 28 24 25 25 Storage 2 | . . . 7 . . Processor 6 | . . . 10 3 8 Energy Gun 19 | . 26 23 20 22 16 Peak Build Rating 31 | 8 9 9 22 31 31 Average Rating 18 | 4 8 9 17 21 25 On Entrance 10 | . 8 9 9 20 17 Avg Prop Armor Cover (%) 9 | . . . 9 . . Naked Turns . | . . . . . . Heaviest Build 27 | 11 9 10 18 27 17 Greatest Support 25 | 20 20 20 20 16 25 Greatest Overweight (x) 4 | . . . 2 1 4 Average Overweight (x) . | . . . . . . Largest Inventory Capacity 8 | 8 5 5 8 5 5 Average Capacity 5 | 7 5 5 7 5 5 Most Carried 8 | 4 5 5 8 5 5 Average Carried 4 | 2 4 5 5 3 4 Final Capacity 5 | 5 5 5 5 5 5 Final Carried 5 | 4 5 5 3 3 3 Class Distribution -------------------- 69% | Mutant 21% | Scout 6% | Scavenger-Mutant 3% | Skirmisher Dominant Class ---------------- Mutant | -10/Materials Mutant | -10/Mines Mutant | -9/Materials Mutant | -9/Mines Scout | -8/Materials Resources | -11 -10 -10 -9 -9 -8 ----------- Run | Yrd Mat Min Mat Min Mat Matter Collected 632 | 248 . . 254 20 110 Remotely . | . . . . . . Salvage Created 713 | 13 . 12 314 . 374 Parts 64 | 4 . 4 31 . 25 Haulers Intercepted . | . . . . . . Recyclers Shooed . | . . . . . . Parts Field Recycled . | . . . . . . Retrieved Matter . | . . . . . . Parts Self-Destructed . | . . . . . . Prevented . | . . . . . . Parts Restored . | . . . . . . Kills | -11 -10 -10 -9 -9 -8 ------- Run | Yrd Mat Min Mat Min Mat Combat Hostiles Destroyed 29 | . . 3 17 . 9 Guns 18 | . . 1 8 . 9 AOE 11 | . . 2 9 . . Classes Destroyed 6 | 1 . 1 2 . 2 Worker 1 | . . . . . 1 Tunneler 1 | 1 . . . . . Swarmer 17 | . . 3 11 . 3 Grunt 7 | . . . 4 . 3 Sentry 4 | . . . 2 . 2 Hunter 1 | . . . . . 1 Best Kill Streak 8 | 1 . 3 7 . 8 Combat Bots Only 7 | . . 3 7 . 7 Max Kills in Single Turn 3 | 1 . 3 3 . 1 Gunslinging 1 | . . . 1 . . Exploded 3 | . . 2 3 . . Melee . | . . . . . . Uniques/NPCs Destroyed . | . . . . . . Combat | -11 -10 -10 -9 -9 -8 -------- Run | Yrd Mat Min Mat Min Mat Hostile Shots Fired 241 | . . 8 79 . 154 Missed 68 | . . 2 23 . 43 Hits 173 | . . 6 56 . 111 Projectile 173 | . . 6 56 . 111 Critical Strikes 5 | . . . 1 . 4 Damage Taken 2306 | . . 48 553 . 1705 Core 631 | . . 6 75 . 550 Absorbed by Shields . | . . . . . . Core Remaining (%) 92 | 100 . 97 . 81 . Volleys Fired 76 | 9 . 2 26 . 39 Largest 3 | 1 . 2 2 . 3 Hottest 230 | 20 . 70 130 . 230 Shots Fired 137 | 9 . 4 46 . 78 Gun 124 | 9 . 2 40 . 73 Cannon . | . . . . . . Launcher 8 | . . 2 6 . . Special 5 | . . . . . 5 Kinetic 26 | 9 . . . . 17 Thermal 99 | . . . 38 . 61 Explosive 8 | . . 2 6 . . Electromagnetic 4 | . . 2 2 . . Robot Hit Streak 22 | 3 . 1 6 . 22 Robot Miss Streak 3 | 3 . 1 3 . 3 Penetration Max . | . . . . . . Secondary Targets 7 | . . . 5 . 2 Max Gunslinging Chain 1 | . . . 1 . 1 Shots Hit Robots 84 | 5 . 1 27 . 51 Core Hits 50 | 1 . 3 23 . 23 Critical Kills . | . . . . . . Critical Parts Destroyed . | . . . . . . Critical Strikes 4 | . . . 2 . 2 Burn 4 | . . . 2 . 2 Melee Attacks . | . . . . . . Impact . | . . . . . . Slashing . | . . . . . . Piercing . | . . . . . . Sneak Attacks . | . . . . . . Combat Hostiles . | . . . . . . Follow-up Attacks . | . . . . . . Damage Inflicted 1854 | 58 . 163 902 . 731 Guns 1201 | 58 . 11 411 . 721 Cannons . | . . . . . . Explosions 643 | . . 152 491 . . Melee . | . . . . . . Ramming 10 | . . . . . 10 Kinetic 251 | 58 . . . . 193 Thermal 927 | . . . 399 . 528 Explosive 643 | . . 152 491 . . Electromagnetic 23 | . . 11 12 . . Impact . | . . . . . . Slashing . | . . . . . . Piercing . | . . . . . . Highest Corruption . | . . . . . . Average Corruption . | . . . . . . Corruption Purged . | . . . . . . Corruption Blocked . | . . . . . . Overload Shots . | . . . . . . Overflow Damage 3 | . . . 3 . . Projectiles . | . . . . . . Explosions 3 | . . . 3 . . Melee . | . . . . . . Knockbacks . | . . . . . . Impact . | . . . . . . Kinetic . | . . . . . . Secondary . | . . . . . . Self-Inflicted Damage . | . . . . . . Shots . | . . . . . . Rammed . | . . . . . . Targets Rammed 7 | . . . . . 7 Kicked 7 | . . . . . 7 Crushed . | . . . . . . Highest Temperature 314 | . . 18 263 . 314 Average Temperature 97 | . . 10 90 . 103 Received Heat Transfer 981 | . . . 117 . 864 Effects 2 | . . . 1 . 1 Energy Bleed 2 | . . . 1 . 1 Siege Activations . | . . . . . . Martial Activations . | . . . . . . Shielding Activations . | . . . . . . Robots Disrupted . | . . . . . . Combat Hostiles . | . . . . . . Robots Corrupted . | . . . . . . Combat Hostiles . | . . . . . . Parts Fried . | . . . . . . Impact Corruptions . | . . . . . . Robots Melted . | . . . . . . Combat Hostiles . | . . . . . . Parts Melted 4 | . . . 2 . 2 Heat Transferred 2590 | . . . 1147 . 1443 Parts Sabotaged . | . . . . . . Parts Stolen . | . . . . . . Parts Stripped . | . . . . . . Power Chain Reactions . | . . . . . . Alert | -11 -10 -10 -9 -9 -8 ------- Run | Yrd Mat Min Mat Min Mat Maximum Alert Level 1 | . . . 1 . 1 Low Security (%) 63 | 100 100 100 5 100 82 Level 1 36 | . . . 94 . 17 Level 2 . | . . . . . . Level 3 . | . . . . . . Level 4 . | . . . . . . Level 5 . | . . . . . . High Security . | . . . . . . Max Security . | . . . . . . Peak Influence 332 | 5 . 99 332 121 235 Initial 121 | . . . 34 121 27 Average 119 | . . 26 248 96 84 Influence Increases 1075 | 5 . 99 508 . 463 Destroy 0b10 Robot/C 580 | . . 60 340 . 180 Destroy 0b10 Robot/NC 10 | 5 . . . . 5 Destroy Leader 120 | . . 10 60 . 50 Disable Machine 90 | . . 15 45 . 30 Destroy Structure 65 | . . 14 48 . 3 Partial Spotted 30 | . . . . . 30 Lose Combat Pursuer 180 | . . . 15 . 165 Influence Decreases 940 | 5 . 10 285 241 399 Entered New Map 290 | . . . 55 191 44 Time Decay 390 | 5 . 10 180 50 145 Lost Part 260 | . . . 50 . 210 Squads Dispatched 1 | . . . . . 1 Investigation . | . . . . . . Extermination . | . . . . . . Reinforcement 1 | . . . . . 1 Assault . | . . . . . . Garrison . | . . . . . . Intercept . | . . . . . . Searches Triggered . | . . . . . . Construction Impeded . | . . . . . . Haulers Reinforced . | . . . . . . Active Scanning Responses . | . . . . . . Cargo Convoy Interrupts . | . . . . . . Stealth | -11 -10 -10 -9 -9 -8 --------- Run | Yrd Mat Min Mat Min Mat Distress Signals 1 | . . . 1 . . Communications Jammed . | . . . . . . Distress Signals . | . . . . . . Times Spotted 49 | . . 3 21 . 25 Peak Tracking Total 14 | . . 3 6 . 14 Tactical Retreats 7 | . . . 1 . 6 Traps | -11 -10 -10 -9 -9 -8 ------- Run | Yrd Mat Min Mat Min Mat Traps Triggered . | . . . . . . Indirectly . | . . . . . . Trap Hack Attempts . | . . . . . . Triggered . | . . . . . . Disarmed . | . . . . . . Reprogrammed . | . . . . . . Reused . | . . . . . . Traps Extracted . | . . . . . . Installed . | . . . . . . Triggered . | . . . . . . Machines | -11 -10 -10 -9 -9 -8 ---------- Run | Yrd Mat Min Mat Min Mat Machines Disabled 6 | . . 1 3 . 2 Max in Single Turn 1 | . . 1 1 . 1 Machines Repaired . | . . . . . . Machines Dismantled . | . . . . . . Machines Sabotaged . | . . . . . . Overloaded Fab Kills . | . . . . . . Hacking | -11 -10 -10 -9 -9 -8 --------- Run | Yrd Mat Min Mat Min Mat Machines Accessed 4 | . 2 . 1 1 . Terminals 2 | . 2 . . . . Fabricators . | . . . . . . Repair Stations . | . . . . . . Recycling Units . | . . . . . . Scanalyzers 1 | . . . 1 . . Garrison Access . | . . . . . . Total Hacks 8 | . 3 . 4 1 . Successful 4 | . 1 . 2 1 . Failed 3 | . 2 . 1 . . Catastrophic . | . . . . . . Database Lockouts 1 | . . . 1 . . Manual 3 | . 3 . . . . Terminals 3 | . 3 . . . . Fabricators . | . . . . . . Repair Stations . | . . . . . . Recycling Units . | . . . . . . Scanalyzers 4 | . . . 4 . . Garrison Access . | . . . . . . Terminal Hacks 1 | . . . . 1 . Open Door 1 | . . . . 1 . Fabricator Hacks . | . . . . . . Repair Station Hacks . | . . . . . . Recycling Unit Hacks . | . . . . . . Scanalyzer 2 | . . . 2 . . Retrieve Study 2 | . . . 2 . . Garrison Access Hacks . | . . . . . . Unauthorized Hacks 1 | . 1 . . . . Terminals 1 | . 1 . . . . Botnet 1 | . 1 . . . . Fabricators . | . . . . . . Repair Stations . | . . . . . . Recycling Units . | . . . . . . Scanalyzers . | . . . . . . Garrison Access . | . . . . . . Data Cores Recovered . | . . . . . . Used . | . . . . . . Hacking Detections . | . . . . . . Full Trace Events . | . . . . . . Feedback Events . | . . . . . . Feedback Blocked . | . . . . . . Robot Schematics Acquired . | . . . . . . Robots Built . | . . . . . . Authchips . | . . . . . . Time . | . . . . . . Total Robot Build Rating . | . . . . . . Part Schematics Acquired . | . . . . . . Parts Built . | . . . . . . Authchips . | . . . . . . Time . | . . . . . . Total Part Build Rating . | . . . . . . Part Studies Acquired 2 | . . . 2 . . Parts Repaired . | . . . . . . Time . | . . . . . . Parts Recycled . | . . . . . . Recycled Matter . | . . . . . . Retrieved Matter . | . . . . . . Retrieved Components . | . . . . . . Parts Scanalyzed . | . . . . . . Part Schematics Acquired . | . . . . . . Parts Damaged . | . . . . . . Bothacking | -11 -10 -10 -9 -9 -8 ------------ Run | Yrd Mat Min Mat Min Mat Used RIF Installer . | . . . . . . Robots Hacked . | . . . . . . Non-combat . | . . . . . . Combat . | . . . . . . Robot Hacks Applied . | . . . . . . Relay Couplers Released . | . . . . . . Fabnet Peak Effective % . | . . . . . . Robots Rewired . | . . . . . . Allies Hacked . | . . . . . . Hacks Repelled . | . . . . . . Allies | -11 -10 -10 -9 -9 -8 -------- Run | Yrd Mat Min Mat Min Mat Total Allies . | . . . . . . Largest Group . | . . . . . . Highest-Rated Group . | . . . . . . Highest-Rated Ally . | . . . . . . Total Orders 1 | . . . . 1 . EXPLORE 1 | . . . . 1 . Ally Attacks . | . . . . . . Total Damage . | . . . . . . Kills . | . . . . . . Allies Corrupted . | . . . . . . Allies Melted . | . . . . . . Intel | -11 -10 -10 -9 -9 -8 ------- Run | Yrd Mat Min Mat Min Mat Active Infowar (turns) 994 | 14 118 46 367 116 333 Sensors 266 | . . . . . 266 Terrain 957 | 14 118 46 367 116 296 Seismic 287 | 11 118 46 112 . . Jamming 37 | . . . . . 37 Robot Analysis Total . | . . . . . . Derelict Logs Recovered 2 | . . . . 2 . Drone Launches 16 | . . . . 16 . Drone Recoveries . | . . . . . . Exploration | -11 -10 -10 -9 -9 -8 ------------- Run | Yrd Mat Min Mat Min Mat Turns Passed 1119 | 116 118 46 367 116 356 Spaces Moved 1021 | 73 94 33 270 143 408 Core 8 | 6 . . . . 2 Treads . | . . . . . . Legs 309 | 67 94 33 103 . 12 Wheels . | . . . . . . Hover 358 | . . . 167 143 48 Flight 346 | . . . . . 346 Fastest Speed 32 | 50 120 120 56 56 32 Average Speed 72 | 114 120 120 91 63 39 Slowest Speed 250 | 120 120 120 190 116 250 Overloaded Moves . | . . . . . . Propulsion Burnouts . | . . . . . . Robots Hopped . | . . . . . . Potential Cave-ins . | . . . . . . Cave-ins Triggered . | . . . . . . Exploration Rate (%) 24 | 4 24 16 24 49 31 Regions Visited 5 Branch Regions 2 Pre-discovered Areas 2 | . . . . 2 . Known Exits Taken . | . . . . . . Unknown Exits Taken 5 | 1 1 1 1 1 . Scrap Searched . | . . . . . . Spaces Dug 4 | . . . . . 4 Terrain Destroyed 74 | . . 18 52 . 4 Melee . | . . . . . . Projectile 4 | . . . . . 4 AOE 70 | . . 18 52 . . Terrain Rammed . | . . . . . . Walls Destroyed . | . . . . . . Machines Disabled . | . . . . . . Actions | -11 -10 -10 -9 -9 -8 --------- Run | Yrd Mat Min Mat Min Mat Total 1265 | 93 99 35 349 169 520 Wait 31 | . . . . 21 10 Move 1016 | 72 93 32 269 142 408 Hop . | . . . . . . Pick Up 46 | 5 3 . 19 1 18 Fast Attach 21 | 5 . . 5 . 11 Attach 19 | 1 1 . 6 1 10 Detach 8 | . . . 4 3 1 Swap 11 | 1 1 1 2 . 6 Drop 30 | . 1 . 18 1 10 Fire 76 | 9 . 2 26 . 39 Melee . | . . . . . . Ram . | . . . . . . Kick 7 | . . . . . 7 Crush . | . . . . . . Escape Stasis . | . . . . . . Rewire . | . . . . . . Trap . | . . . . . . Miscellaneous . | . . . . . . Route ------- -11/Scrapyard -10/Materials -10/Mines -9/Materials -9/Mines (discovered 2 exits: *Mat x2) -8/Materials History --------- Turn | Location | Event 7 | -11/Scrapyard | Discovered new exit (range 15) 117 | -11/Scrapyard | Entered Materials 213 | -10/Materials | Discovered new exit (range 7) 235 | -10/Materials | Entered Mines 246 | -10/Mines | Met a Derelict bent on vengeance 261 | -10/Mines | Discovered new exit (range 10) 281 | -10/Mines | Entered Materials 281 | -9/Materials | Evolved 2 slots: Utility x2 303 | -9/Materials | Build established: Mutant 323 | -9/Materials | Destroyed 7 combat bots 485 | -9/Materials | Central database locked down 627 | -9/Materials | Lost 3 parts (1n1u1w) 640 | -9/Materials | Discovered new exit (range 10) 648 | -9/Materials | Entered Mines 649 | -9/Mines | Assembled infested the area 652 | -9/Mines | Found the Drone Emporium 654 | -9/Mines | Assisted by a Guerilla fighting off Assembled 654 | -9/Mines | Found Prototype Device 656 | -9/Mines | Identified Decoy Drone Bay 685 | -9/Mines | Discovered new exit (range 35) 688 | -9/Mines | Discovered new exit (range 47) 712 | -9/Mines | Learned 2 Materials zone layouts 714 | -9/Mines | Lost 5 allies 724 | -9/Mines | Learned location of Zion (-6) 725 | -9/Mines | Learned location of Storage (-7) 764 | -9/Mines | Entered Materials 764 | -8/Materials | Evolved 2 slots: Propulsion x1, Weapon x1 1075 | -8/Materials | Destroyed 7 combat bots 1088 | -8/Materials | Core integrity fell below 50% 1111 | -8/Materials | Core integrity fell below 20% 1120 | -8/Materials | Destroyed by G-47 Trooper with Particle Gun Last Messages --------------- 01080_ M-13 Machinist repairs G-47 Trooper. 01081_ Acquired Aluminum Leg+. 01083_ Acquired Lgt. Nuclear Core. 01086_ Particle Gun+ destroyed. 01087_ Acquired Imp. Ion Engine. 01096_ G-47 Trooper suffers critical hit (Burn). 01096_ Carbon-fiber Leg destroyed. 01096_ Critical hit (Burn: +37). 01101_ Hvy. Assault Rifle destroyed. 01107_ Heat Sink destroyed. 01109_ G-47 Trooper heat short circuits Particle Gun. 01112_ Kicked Y-45 Defender. 01113_ Adv. Heat Sink destroyed. 01114_ Kicked Y-45 Defender. 01115_ Kicked Y-45 Defender out of the way. 01116_ Kicked Y-45 Defender. 01116_ Beam Rifle destroyed. 01117_ Kicked Y-45 Defender out of the way. 01118_ Kicked Y-45 Defender. 01119_ Kicked Y-45 Defender out of the way. Map ----- +----------------------------------------------------+ | ?????????????????????????????????????????????????? | | ?????????????????????????????????????????????????? | | ?????????????????????????????????????????????????? | | ?????????????????????????????????????????????????? | | ?????????????????????????????????????????????????? | | ?????????????????????????????????????????????????? | | ?????????????????????????????????????????????????? | | ?????????????????????????????????????????????????? | | ?????????????????????????????????????????????????? | | ?????????????????????????????????????????????????? | | ?????????????????????????????????????????????????? | | ?????????????????????????????????????????????????? | | ?????????????????????????????????????????????????? | | ?????????????????????????????????????????????????? | | ?????????????????????????????????????????????????? | | ?????????????????????????????????????????????????? | | ?????????????????????????????????????????????????? | | ?????????????????????????????????????????????????? | | ?????????????????????????????????????????????????? | | ?????????????????????????????????????????????????? | | ?????????????????????????????#???????????????????? | | ????????????????????#???##???????????????????????? | | ??????????????##????????###???????? ?????????????? | | ????????????????????????# ???#??????????????????? | | ????????????????????????#Y#??????????????????????? | | ???????????#????????????#@#??##??????????????????? | | ????????????????????????# #???#??????????????????? | | ???????????????#???#????# #??????????????????????? | | ?????????#?????????????## #????#???????? ???????? | | ????????????????#?????###g#######??????? ???? | | ?????????????????#????# ! #??????? T ? | | ?????????#????????????# #??????? " | | ??????????????????????# """ #??????# | | ??????#??????##??????## """"#??? ??# | | ??????????????##?#??#?# g """"#??????# | | ???????????#??????????# ! """#???? ?+ | | ??????????????????????# = *%% " #??????# | | ??????????????#???????# !=%=%=% #??????# | | ###??????#???###??????#######+###?????## | | #????####### ##??##?????# [ ####### ==! | | #????# T ########### =!! | | ! #????# + =! ! | | #????#! ###### #### ! | | #????# #????# #??# ####### % | | ! #????# =##???# #??#######??######+######## | | ###????# """"" #????# ######??????# #???? | | ####### """"" #??#?# #!!! #??????# "T" #???? | | + """"" !#?#??# #!! #??????# #???? | | ####### #?##?# #!! #??????# = #???? | | ##?????#+###/######### # #??????# #???? | +----------------------------------------------------+ Best States ------------- Heat Dissipation 60 Energy Generation 14 Energy Capacity 265 Matter Stores 300 Matter Capacity 300 Sight Range 16 Robot Scan Range 15 Terrain Scan Range 16 Terrain Scan Density 85 Jamming Range 12 Additional Mass Support 9 Evasion (%) 63 Targeting Accuracy 5 Item Schematics ----------------- None Robot Schematics ------------------ None Fabricated ------------ Nothing Repaired ---------- Nothing Studied --------- Particle Gun | -9/Materials | Hacked Aluminum Leg | -9/Materials | Hacked Alien Tech Used ----------------- None Achievements -------------- None Challenges ------------ None Game ------ Seed DerelictSmartTreads Manual? 0 Play Time 00:24:37 Cumulative 83.2 hours Start 2025.11.17 @ 18:28:10 End 2025.11.17 @ 18:52:34 Sessions 1 Manual Loads 0 Difficulty Rogue Special Mode None Game No. 106 Rogue 106 Adventurer 0 Explorer 0 Win Type - Total 0 Types 0/0/0/0/0/0/0/0/0/0 Lore% 23 Gallery% 40 Achievement% 24 Wizard Run 0 Options --------- Layout 0 ASCII 0 Keyboard 0 Movement Mouse Keybinds 0 Fullscreen 1 Font 24/Smallcaps Map View 76x50 Zoom Use 0% Tactical HUD 1 Map Filters NONE Filters NONE Steam 1 RUN: aabbd762-3fd0-4ca3-b2e8-17bf0ee71868